[Event "Romanian Amateur Championship 2024"]
[Site "Eforie Nord"]
[Date "2024.02.27"]
[Round "2.4"]
[White "Raducanu, Andrei-Augustin"]
[Black "Toma, Mihail"]
[Result "1-0"]
[ECO "B01"]
[WhiteElo "1946"]
[BlackElo "1651"]
[Annotator "RC"]
[PlyCount "39"]
[EventDate "2024.02.26"]
[EventType "swiss"]
[EventCountry "ROU"]
[SourceTitle "playchess.com"]
[Source "ChessBase"]
[SourceQuality "1"]
[TimeControl "3600+30"]

1. e4 {[%emt 0:00:05]} d5 {[%emt 0:00:15]} 2. exd5 {[%emt 0:00:05]} Qxd5 {[%emt 0:00:07]} 3. Nc3 {[%emt 0:00:35]} Qa5 {[%emt 0:00:11]} 4. d4 {[%emt 0:00:03]} Nf6 {[%emt 0:00:07]} 5. Nf3 {[%emt 0:00:09]} c6 {[%emt 0:00:05]} 6. Ne5 {[%emt 0:01:14]} Bf5 {[%emt 0:01:09]} 7. g4 {[%emt 0:00:34]} Be6 {[%emt 0:00:52]} 8. Bc4 {[%emt 0:00:40]} Bxc4 {[%emt 0:00:45]} 9. Nxc4 {[%emt 0:00:05]} Qc7 {[%emt 0:00:27]} 10. Qf3 {[%emt 0:00:34]} e6 {[%emt 0:02:14]} 11. Bf4 {[%emt 0:00:15]} Qd8 {[%emt 0:00:47]} 12. O-O-O {[%emt 0:00:17]} Nd5 {[%emt 0:02:28]} 13. Ne4 {[%emt 0:01:58]} Nxf4 {[%emt 0:05:56]} 14. Qxf4 {[%emt 0:00:05]} Qd7 {[%emt 0:05:11]} 15. Ne5 {[%emt 0:08:17]} Qc7 {[%emt 0:03:29]} 16. Ng5 {[%emt 0:04:12]} f6 {[%emt 0:01:08]} 17. Nxe6 {[%emt 0:00:19]} Qe7 {[%emt 0:07:02]} 18. Nf3 {[%emt 0:13:19]} Na6 {[%emt 0:01:24]} 19. Rhe1 {[%emt 0:00:25]} Qd6 {[%emt 0:03:09]} 20. Nxf8+ {[%emt 0:01:07]} 1-0

[Event "Romanian Amateur Championship 2024"]
[Site "Eforie Nord"]
[Date "2024.02.27"]
[Round "3.1"]
[White "Tudoroiu, Razvan-Catalin"]
[Black "Miron, Dimitrie"]
[Result "1-0"]
[ECO "D02"]
[WhiteElo "2031"]
[BlackElo "1810"]
[Annotator "NA RC"]
[PlyCount "113"]
[EventDate "2024.02.26"]
[EventType "swiss"]
[EventCountry "ROU"]
[SourceTitle "playchess.com"]
[Source "ChessBase"]
[SourceQuality "1"]
[TimeControl "3600+30"]

1. d4 {[%emt 0:00:50]} d5 {[%emt 0:00:09]} 2. Bf4 {[%emt 0:00:06]} c5 {[%emt 0:00:05]} 3. e3 {[%emt 0:00:11]} Nc6 {[%emt 0:00:05]} 4. Nf3 {[%emt 0:01:39]} Nf6 {[%emt 0:00:02]} 5. Nc3 {[%emt 0:02:11]} Bg4 {[%emt 0:07:36]} 6. Be2 {[%emt 0:11:40]} e6 {[%emt 0:01:56]} 7. O-O {[%emt 0:00:26]} cxd4 {[%emt 0:05:08]} 8. exd4 {[%emt 0:02:09]} Bd6 {[%emt 0:02:14]} 9. Bxd6 {[%emt 0:06:31]} Qxd6 {[%emt 0:00:08]} 10. Nb5 {[%emt 0:02:53]} Qd8 {[%emt 0:03:27]} 11. c3 {[%emt 0:02:52]} O-O {[%emt 0:00:10]} 12. Na3 {[%emt 0:00:08]} Ne4 {[%emt 0:07:51]} 13. Nc2 {[%emt 0:00:07]} a6 {[%emt 0:00:57]} 14. Nce1 {[%emt 0:02:23]} Bxf3 {[%emt 0:11:21]} 15. Bxf3 {[%emt 0:00:31]} Nd6 {[%emt 0:00:10]} 16. Nd3 {[%emt 0:00:56]} b6 {[%emt 0:00:20]} 17. Qe2 {[%emt 0:03:06]} Qc7 {[%emt 0:01:06]} 18. g3 {[%emt 0:00:27]} Na5 {[%emt 0:03:42]} 19. Kg2 {[%emt 0:01:34]} b5 {[%emt 0:01:33]} 20. h4 {[%emt 0:01:10]} Nac4 {[%emt 0:00:15]} 21. Rae1 {[%emt 0:02:38]} a5 {[%emt 0:01:15]} 22. a3 {[%emt 0:00:07]} Rae8 {[%emt 0:03:38]} 23. Qc2 {[%emt 0:02:01]} f5 {[%emt 0:01:57]} 24. Rxe6 {[%emt 0:04:54]} Ne4 {[%emt 0:00:27]} 25. Rxe8 {[%emt 0:01:21]} Rxe8 {[%emt 0:00:01]} 26. Re1 {[%emt 0:01:00]} Rb8 {[%emt 0:00:51]} 27. Qc1 {[%emt 0:01:26]} Ncd6 {[%emt 0:00:52]} 28. Qf4 {[%emt 0:03:16]} Re8 {[%emt 0:02:55]} 29. Bxe4 {[%emt 0:03:51]} dxe4 {[%emt 0:01:12]} 30. Ne5 {[%emt 0:00:58]} Qb7 {[%emt 0:00:57]} 31. Kh2 {[%emt 0:01:14]} Qd5 {[%emt 0:01:18]} 32. h5 {[%emt 0:04:17]} Re6 {[%emt 0:12:52]} 33. Qg5 Qa8 {[%emt 0:00:00]} 34. Rg1 {[%emt 0:02:31]} Qe8 {[%emt 0:00:00]} 35. Rh1 {[%emt 0:01:12]} Rh6 {[%emt 0:00:00]} 36. Kg1 {[%emt 0:00:43]} Kf8 {[%emt 0:00:00]} 37. Rh4 {[%emt 0:00:10]} Re6 {[%emt 0:00:00]} 38. h6 {[%emt 0:00:36]} g6 {[%emt 0:00:00]} 39. Rf4 {[%emt 0:01:02]} Kg8 {[%emt 0:00:00]} 40. g4 {[%emt 0:01:35]} Qf8 {[%emt 0:00:55]} 41. gxf5 {[%emt 0:01:11]} Nxf5 {[%emt 0:00:04]} 42. Nd7 {[%emt 0:01:04]} Qe7 {[%emt 0:01:37]} 43. Qxe7 {[%emt 0:01:55]} Rxe7 {[%emt 0:00:07]} 44. Nf6+ {[%emt 0:00:08]} Kh8 {[%emt 0:00:08]} 45. Rxe4 {[%emt 0:00:27]} Rxe4 {[%emt 0:00:07]} 46. Nxe4 {[%emt 0:00:01]} Nxh6 {[%emt 0:00:10]} 47. Nd6 {[%emt 0:02:32]} b4 {[%emt 0:00:10]} 48. axb4 axb4 {[%emt 0:00:08]} 49. cxb4 {[%emt 0:00:00]} Ng8 {[%emt 0:00:21]} 50. b5 {[%emt 0:01:30]} Ne7 {[%emt 0:00:15]} 51. b6 {[%emt 0:00:00]} Nc6 {[%emt 0:00:12]} 52. d5 {[%emt 0:00:00]} Nb8 {[%emt 0:00:06]} 53. Nf7+ {[%emt 0:00:00]} Kg7 {[%emt 0:00:09]} 54. Nd8 {[%emt 0:00:00]} Kf6 {[%emt 0:00:27]} 55. Nc6 {[%emt 0:00:00]} Nd7 {[%emt 0:00:06]} 56. b7 {[%emt 0:00:00]} h6 {[%emt 0:00:14]} 57. Kg2 {[%emt 0:00:00]} 1-0

[Event "Romanian Amateur Championship 2024"]
[Site "Eforie Nord"]
[Date "2024.02.27"]
[Round "3.2"]
[White "Dascalescu, Adelin-Stefan"]
[Black "Barbu, Simon-Alexandru"]
[Result "1-0"]
[ECO "D00"]
[WhiteElo "1793"]
[BlackElo "2030"]
[Annotator "NA RC"]
[PlyCount "151"]
[EventDate "2024.02.26"]
[EventType "swiss"]
[EventCountry "ROU"]
[SourceTitle "playchess.com"]
[Source "ChessBase"]
[SourceQuality "1"]
[TimeControl "3600+30"]

1. d4 {[%emt 0:00:01]} Nf6 {[%emt 0:00:46]} 2. Bg5 {[%emt 0:00:05]} d5 {[%emt 0:02:51]} 3. Bxf6 {[%emt 0:01:11]} exf6 {[%emt 0:00:02]} 4. Nf3 {[%emt 0:01:44]} Bd6 {[%emt 0:00:30]} 5. Nc3 {[%emt 0:00:55]} c6 {[%emt 0:00:56]} 6. Qd2 {[%emt 0:00:13]} O-O {[%emt 0:01:52]} 7. e3 {[%emt 0:00:53]} Re8 {[%emt 0:02:13]} 8. Bd3 {[%emt 0:01:04]} a5 {[%emt 0:06:13]} 9. Ne2 {[%emt 0:02:38]} Na6 {[%emt 0:06:55]} 10. a3 {[%emt 0:00:09]} Nc7 {[%emt 0:05:51]} 11. Ng3 {[%emt 0:01:28]} Ne6 {[%emt 0:04:17]} 12. O-O {[%emt 0:01:21]} g6 {[%emt 0:01:15]} 13. c4 {[%emt 0:01:21]} f5 {[%emt 0:05:10]} 14. Ne2 {[%emt 0:03:14]} Bc7 {[%emt 0:07:00]} 15. Nc3 {[%emt 0:02:37]} dxc4 {[%emt 0:04:07]} 16. Bxc4 {[%emt 0:00:07]} Qd6 {[%emt 0:00:05]} 17. e4 {[%emt 0:49:59]} Nf8 {[%emt 0:04:37]} 18. e5 {[%emt 0:00:00]} Qd8 {[%emt 0:00:22]} 19. Rad1 {[%emt 0:00:00]} Be6 {[%emt 0:02:08]} 20. d5 {[%emt 0:00:00]} cxd5 {[%emt 0:00:06]} 21. Nxd5 {[%emt 0:00:00]} Bxd5 {[%emt 0:00:46]} 22. Bxd5 {[%emt 0:00:00]} Rb8 {[%emt 0:00:31]} 23. Qh6 {[%emt 0:00:00]} Bxe5 {[%emt 0:04:07]} 24. Bxf7+ {[%emt 0:00:00]} Kxf7 {[%emt 0:09:50]} 25. Rxd8 {[%emt 0:00:00]} Rbxd8 {[%emt 0:00:00]} 26. Nxe5+ {[%emt 0:00:00]} Rxe5 {[%emt 0:00:00]} 27. Qc1 {[%emt 0:00:00]} Red5 {[%emt 0:00:00]} 28. Re1 {[%emt 0:00:00]} Ne6 {[%emt 0:00:00]} 29. h3 {[%emt 0:00:00]} b6 {[%emt 0:00:00]} 30. Kh2 {[%emt 0:00:00]} R5d6 {[%emt 0:00:00]} 31. Qh6 {[%emt 0:00:00]} Nf8 {[%emt 0:00:00]} 32. Qh4 {[%emt 0:00:00]} Re8 {[%emt 0:00:00]} 33. Rc1 {[%emt 0:00:00]} Rde6 {[%emt 0:00:13]} 34. Qd4 {[%emt 0:00:00]} R8e7 {[%emt 0:00:45]} 35. Rc8 {[%emt 0:00:00]} Re8 {[%emt 0:00:01]} 36. Rc3 {[%emt 0:00:00]} R8e7 {[%emt 0:00:33]} 37. g4 {[%emt 0:00:00]} Rd7 {[%emt 0:02:07]} 38. Qf4 {[%emt 0:00:00]} Re4 {[%emt 0:00:28]} 39. Qf3 {[%emt 0:00:00]} Kf6 {[%emt 0:01:06]} 40. gxf5 {[%emt 0:00:00]} gxf5 {[%emt 0:00:01]} 41. Rc8 {[%emt 0:00:00]} Ng6 {[%emt 0:00:24]} 42. Rc6+ {[%emt 0:00:00]} Re6 {[%emt 0:00:37]} 43. Rxe6+ {[%emt 0:00:00]} Kxe6 {[%emt 0:00:01]} 44. Qb3+ {[%emt 0:00:00]} Ke5 {[%emt 0:02:43]} 45. Qe3+ {[%emt 0:00:00]} Kd5 {[%emt 0:00:44]} 46. Qxb6 {[%emt 0:14:30]} Ke4 {[%emt 0:00:43]} 47. Qc6+ {[%emt 0:00:00]} Rd5 {[%emt 0:00:02]} 48. f3+ {[%emt 0:00:00]} Ke5 {[%emt 0:00:28]} 49. Qc7+ {[%emt 0:00:00]} Ke6 {[%emt 0:00:25]} 50. Qxh7 {[%emt 0:00:00]} Rd2+ {[%emt 0:00:48]} 51. Kg3 {[%emt 0:00:00]} f4+ {[%emt 0:00:37]} 52. Kg4 {[%emt 0:00:00]} Kf6 {[%emt 0:00:02]} 53. Qa7 {[%emt 0:00:00]} Rg2+ {[%emt 0:01:01]} 54. Kh5 {[%emt 0:00:00]} Ne5 {[%emt 0:00:37]} 55. Qb6+ {[%emt 0:00:00]} Kf5 {[%emt 0:00:14]} 56. Qh6 {[%emt 0:00:00]} Nf7 {[%emt 0:00:49]} 57. Qh7+ {[%emt 0:00:00]} Kf6 {[%emt 0:00:03]} 58. h4 {[%emt 0:00:00]} Nd6 {[%emt 0:00:55]} 59. Qh8+ {[%emt 0:00:00]} Ke6 {[%emt 0:00:29]} 60. Qd4 {[%emt 0:00:00]} Nf5 {[%emt 0:00:16]} 61. Qxf4 {[%emt 0:00:00]} Rg7 {[%emt 0:00:44]} 62. Qc4+ {[%emt 0:00:00]} Kd6 {[%emt 0:00:25]} 63. Qa6+ {[%emt 0:00:00]} Ke5 {[%emt 0:00:37]} 64. Qxa5+ {[%emt 0:00:00]} Ke6 {[%emt 0:00:30]} 65. Qb6+ {[%emt 0:00:00]} Ke5 {[%emt 0:00:02]} 66. Qc5+ {[%emt 0:00:00]} Ke6 {[%emt 0:00:58]} 67. Qc6+ {[%emt 0:00:00]} Kf7 {[%emt 0:00:30]} 68. Qc7+ {[%emt 0:00:00]} Ne7 {[%emt 0:00:05]} 69. a4 {[%emt 0:00:00]} Ke6 {[%emt 0:00:25]} 70. a5 {[%emt 0:00:00]} Kf5 {[%emt 0:00:10]} 71. Qc5+ {[%emt 0:00:00]} Ke6 {[%emt 0:00:29]} 72. Qe3+ {[%emt 0:00:00]} Kf7 {[%emt 0:00:51]} 73. Qf4+ {[%emt 0:00:00]} Kg8 {[%emt 0:00:16]} 74. a6 {[%emt 0:00:00]} Rh7+ {[%emt 0:00:20]} 75. Kg4 {[%emt 0:00:00]} Rg7+ {[%emt 0:00:47]} 76. Kh3 {[%emt 0:00:00]} 1-0

[Event "Romanian Amateur Championship 2024"]
[Site "Eforie Nord"]
[Date "2024.02.27"]
[Round "3.3"]
[White "Almasan, Calin-Ovidiu"]
[Black "Raducanu, Andrei-Augustin"]
[Result "0-1"]
[ECO "B22"]
[WhiteElo "1800"]
[BlackElo "1946"]
[Annotator "NA RC"]
[PlyCount "90"]
[EventDate "2024.02.26"]
[EventType "swiss"]
[EventCountry "ROU"]
[SourceTitle "playchess.com"]
[Source "ChessBase"]
[SourceQuality "1"]
[TimeControl "3600+30"]

1. e4 {[%emt 0:00:05]} c5 {[%emt 0:00:11]} 2. c3 {[%emt 0:01:39]} d6 {[%emt 0:00:17]} 3. f4 {[%emt 0:01:50]} Nf6 {[%emt 0:01:01]} 4. Bb5+ {[%emt 0:02:36]} Bd7 {[%emt 0:02:14]} 5. Bxd7+ {[%emt 0:00:07]} Qxd7 {[%emt 0:01:36]} 6. Qf3 {[%emt 0:04:03]} Nc6 {[%emt 0:00:41]} 7. d3 {[%emt 0:01:37]} g6 {[%emt 0:04:39]} 8. Ne2 {[%emt 0:00:25]} Bg7 {[%emt 0:00:24]} 9. O-O {[%emt 0:02:16]} O-O {[%emt 0:00:59]} 10. Ng3 {[%emt 0:02:19]} b5 {[%emt 0:02:45]} 11. Rd1 {[%emt 0:12:38]} Rfc8 {[%emt 0:16:06]} 12. d4 {[%emt 0:14:50]} cxd4 {[%emt 0:00:36]} 13. cxd4 {[%emt 0:00:06]} Nxd4 {[%emt 0:01:33]} 14. Qd3 {[%emt 0:01:20]} Nc2 {[%emt 0:01:50]} 15. e5 {[%emt 0:00:07]} dxe5 {[%emt 0:08:11]} 16. Qxd7 {[%emt 0:00:06]} Nxd7 {[%emt 0:00:04]} 17. Rxd7 {[%emt 0:00:06]} Nxa1 {[%emt 0:01:26]} 18. Nc3 {[%emt 0:00:10]} b4 {[%emt 0:07:59]} 19. Nce2 {[%emt 0:00:05]} Kf8 {[%emt 0:01:37]} 20. f5 {[%emt 0:03:10]} Ke8 {[%emt 0:03:23]} 21. Rb7 {[%emt 0:00:22]} Nc2 {[%emt 0:01:32]} 22. Bd2 {[%emt 0:00:31]} a5 {[%emt 0:00:45]} 23. fxg6 {[%emt 0:00:37]} hxg6 {[%emt 0:00:26]} 24. Ne4 {[%emt 0:00:23]} Nd4 {[%emt 0:05:31]} 25. N2g3 {[%emt 0:00:13]} Rab8 {[%emt 0:01:25]} 26. Ra7 {[%emt 0:01:00]} Ra8 {[%emt 0:01:57]} 27. Rb7 {[%emt 0:00:03]} Rcb8 {[%emt 0:01:46]} 28. Rc7 {[%emt 0:00:07]} Ne6 {[%emt 0:00:20]} 29. Rc6 {[%emt 0:01:51]} Kd7 {[%emt 0:00:50]} 30. Rc1 {[%emt 0:00:10]} f5 {[%emt 0:01:01]} 31. Nf2 {[%emt 0:02:02]} Rc8 {[%emt 0:00:07]} 32. Rd1 {[%emt 0:00:01]} Ke8 {[%emt 0:00:44]} 33. h4 {[%emt 0:00:13]} Rc2 {[%emt 0:01:17]} 34. h5 {[%emt 0:00:10]} Kf7 {[%emt 0:00:30]} 35. a3 {[%emt 0:07:40]} Rd8 {[%emt 0:00:17]} 36. Nf1 {[%emt 0:00:09]} Rxb2 {[%emt 0:00:38]} 37. axb4 {[%emt 0:00:11]} axb4 {[%emt 0:00:02]} 38. hxg6+ {[%emt 0:00:25]} Kxg6 {[%emt 0:00:04]} 39. g4 {[%emt 0:00:58]} fxg4 {[%emt 0:01:01]} 40. Nxg4 {[%emt 0:00:14]} Nd4 {[%emt 0:00:33]} 41. Ngh2 {[%emt 0:02:38]} Nb3 {[%emt 0:00:41]} 42. Nf3 {[%emt 0:00:22]} e4 {[%emt 0:00:18]} 43. Nh4+ {[%emt 0:00:21]} Kf7 {[%emt 0:01:10]} 44. Ng3 {[%emt 0:02:35]} Nxd2 {[%emt 0:00:09]} 45. Nxe4 {[%emt 0:00:29]} Nf3+ {[%emt 0:00:30]} 0-1

[Event "Romanian Amateur Championship 2024"]
[Site "Eforie Nord"]
[Date "2024.02.27"]
[Round "3.4"]
[White "Cazan, Mircea-Andrei"]
[Black "Gazdaru, Rares"]
[Result "0-1"]
[ECO "B11"]
[WhiteElo "1894"]
[BlackElo "1807"]
[Annotator "NA RC"]
[PlyCount "70"]
[EventDate "2024.02.26"]
[EventType "swiss"]
[EventCountry "ROU"]
[SourceTitle "playchess.com"]
[Source "ChessBase"]
[SourceQuality "1"]
[TimeControl "3600+30"]

1. e4 {[%emt 0:00:26]} c6 {[%emt 0:00:20]} 2. Nc3 {[%emt 0:00:11]} d5 {[%emt 0:00:18]} 3. Nf3 {[%emt 0:00:07]} Bg4 {[%emt 0:00:31]} 4. h3 {[%emt 0:00:08]} Bxf3 {[%emt 0:00:06]} 5. Qxf3 {[%emt 0:00:02]} e6 {[%emt 0:00:12]} 6. d3 {[%emt 0:01:35]} Nd7 {[%emt 0:02:13]} 7. Bd2 {[%emt 0:01:53]} Ngf6 {[%emt 0:00:42]} 8. g4 {[%emt 0:00:13]} Ne5 {[%emt 0:02:28]} 9. Qg3 {[%emt 0:01:05]} Nfd7 {[%emt 0:16:33]} 10. f4 {[%emt 0:04:30]} Qh4 {[%emt 0:01:37]} 11. Qxh4 {[%emt 0:01:51]} Nf3+ {[%emt 0:00:03]} 12. Kf2 {[%emt 0:03:44]} Nxh4 {[%emt 0:00:07]} 13. d4 {[%emt 0:04:20]} O-O-O {[%emt 0:41:50]} 14. Bd3 {[%emt 0:47:25]} dxe4 {[%emt 0:00:00]} 15. Nxe4 {[%emt 0:00:00]} Be7 {[%emt 0:00:00]} 16. Kg3 {[%emt 0:00:00]} h6 {[%emt 0:00:00]} 17. a4 {[%emt 0:00:00]} Nf6 {[%emt 0:00:00]} 18. Nxf6 {[%emt 0:00:00]} Bxf6 {[%emt 0:00:00]} 19. Be3 {[%emt 0:00:00]} g5 {[%emt 0:03:00]} 20. fxg5 {[%emt 0:00:00]} Bxg5 {[%emt 0:00:00]} 21. Rae1 {[%emt 0:00:00]} Rhe8 {[%emt 0:00:00]} 22. Rhf1 {[%emt 0:00:00]} Re7 {[%emt 0:00:00]} 23. Bxg5 {[%emt 0:00:00]} hxg5 {[%emt 0:00:00]} 24. Re5 {[%emt 0:00:00]} Rd5 {[%emt 0:00:00]} 25. Rxg5 {[%emt 0:02:45]} Rxg5 {[%emt 0:00:00]} 26. Kxh4 {[%emt 0:00:01]} Rg8 {[%emt 0:00:00]} 27. g5 {[%emt 0:00:09]} Rd7 {[%emt 0:00:00]} 28. c3 {[%emt 0:01:11]} Kd8 {[%emt 0:00:00]} 29. Be4 {[%emt 0:00:23]} Re7 {[%emt 0:00:00]} 30. Kh5 {[%emt 0:02:25]} Kd7 {[%emt 0:01:35]} 31. Rf6 {[%emt 0:00:57]} Ke8 {[%emt 0:02:29]} 32. Kh6 {[%emt 0:00:31]} e5 {[%emt 0:01:06]} 33. dxe5 {[%emt 0:00:36]} Rxe5 {[%emt 0:00:23]} 34. Bf5 {[%emt 0:00:23]} Ke7 {[%emt 0:00:26]} 35. Kh7 {[%emt 0:00:38]} Rxg5 {[%emt 0:02:01]} 0-1

[Event "Romanian Amateur Championship 2024"]
[Site "Eforie Nord"]
[Date "2024.02.28"]
[Round "4.1"]
[White "Gazdaru, Rares"]
[Black "Tudoroiu, Razvan-Catalin"]
[Result "0-1"]
[ECO "A70"]
[WhiteElo "1807"]
[BlackElo "2031"]
[Annotator "RC"]
[PlyCount "152"]
[EventDate "2024.02.26"]
[EventType "swiss"]
[EventCountry "ROU"]
[SourceTitle "playchess.com"]
[Source "ChessBase"]
[SourceQuality "1"]
[TimeControl "3600+30"]

1. d4 {[%emt 0:00:10]} Nf6 {[%emt 0:01:03]} 2. Nf3 {[%emt 0:00:19]} c5 {[%emt 0:00:05]} 3. d5 {[%emt 0:00:19]} e6 {[%emt 0:00:06]} 4. c4 {[%emt 0:00:27]} exd5 {[%emt 0:00:07]} 5. cxd5 {[%emt 0:00:07]} d6 {[%emt 0:00:04]} 6. Nc3 {[%emt 0:00:29]} g6 {[%emt 0:00:07]} 7. e4 {[%emt 0:00:23]} Bg7 {[%emt 0:00:05]} 8. Bc4 {[%emt 0:03:48]} O-O {[%emt 0:00:17]} 9. O-O {[%emt 0:00:03]} a6 {[%emt 0:00:06]} 10. a4 {[%emt 0:00:30]} Bg4 {[%emt 0:00:05]} 11. h3 {[%emt 0:01:52]} Bxf3 {[%emt 0:00:04]} 12. Qxf3 {[%emt 0:00:03]} Nbd7 {[%emt 0:05:05]} 13. Bf4 {[%emt 0:01:02]} Qe7 {[%emt 0:00:04]} 14. Rfe1 {[%emt 0:04:02]} Rab8 {[%emt 0:02:28]} 15. Qg3 {[%emt 0:11:16]} Ne8 {[%emt 0:05:00]} 16. Rad1 {[%emt 0:07:03]} Ne5 {[%emt 0:00:22]} 17. Bxe5 {[%emt 0:00:46]} Bxe5 {[%emt 0:00:42]} 18. f4 {[%emt 0:00:40]} Bd4+ {[%emt 0:00:24]} 19. Kh1 {[%emt 0:00:04]} Nf6 {[%emt 0:08:22]} 20. Qg5 {[%emt 0:05:49]} Rbe8 {[%emt 0:45:54]} 21. Bd3 {[%emt 0:08:27]} Kg7 {[%emt 0:00:00]} 22. Qg3 {[%emt 0:01:54]} Nh5 {[%emt 0:00:00]} 23. Qf3 {[%emt 0:00:34]} Bxc3 {[%emt 0:00:00]} 24. bxc3 {[%emt 0:00:16]} Qf6 {[%emt 0:00:00]} 25. Bc2 {[%emt 0:06:09]} Qxf4 {[%emt 0:00:00]} 26. Qxf4 {[%emt 0:00:04]} Nxf4 {[%emt 0:00:00]} 27. a5 {[%emt 0:00:32]} Re7 {[%emt 0:00:00]} 28. Ba4 {[%emt 0:01:09]} Rd8 {[%emt 0:00:00]} 29. Kh2 {[%emt 0:00:36]} Nh5 {[%emt 0:00:00]} 30. Re2 {[%emt 0:03:25]} Nf6 {[%emt 0:00:00]} 31. Rde1 {[%emt 0:00:28]} Nd7 {[%emt 0:00:00]} 32. Bxd7 {[%emt 0:00:38]} Rdxd7 {[%emt 0:00:00]} 33. c4 {[%emt 0:00:12]} Kf6 {[%emt 0:00:00]} 34. Kg3 {[%emt 0:00:54]} Ke5 {[%emt 0:00:00]} 35. Kf3 {[%emt 0:00:10]} Rd8 {[%emt 0:00:00]} 36. g4 {[%emt 0:00:25]} Rh8 {[%emt 0:00:00]} 37. Ke3 {[%emt 0:03:17]} Kf6 {[%emt 0:00:00]} 38. Kf4 {[%emt 0:01:17]} g5+ {[%emt 0:00:00]} 39. Ke3 {[%emt 0:00:18]} h5 {[%emt 0:00:00]} 40. Rf2+ {[%emt 0:00:38]} Kg6 {[%emt 0:00:00]} 41. Rf3 {[%emt 0:00:56]} hxg4 {[%emt 0:00:00]} 42. hxg4 {[%emt 0:00:02]} Rh2 {[%emt 0:00:00]} 43. Rff1 {[%emt 0:04:39]} Rh4 {[%emt 0:00:00]} 44. Rf3 {[%emt 0:03:20]} Rxg4 {[%emt 0:00:00]} 45. Kd3 {[%emt 0:00:01]} Kg7 {[%emt 0:00:00]} 46. Rf5 {[%emt 0:01:07]} Rg3+ {[%emt 0:00:00]} 47. Re3 {[%emt 0:00:02]} Rxe3+ {[%emt 0:00:04]} 48. Kxe3 {[%emt 0:00:00]} f6 {[%emt 0:00:20]} 49. Rf1 {[%emt 0:00:08]} Kg6 {[%emt 0:00:12]} 50. Kd3 {[%emt 0:00:31]} Rh7 {[%emt 0:00:07]} 51. Rb1 {[%emt 0:00:17]} g4 {[%emt 0:14:47]} 52. Rb6 {[%emt 0:00:55]} Rd7 {[%emt 0:00:00]} 53. Ke3 {[%emt 0:00:12]} Kg5 {[%emt 0:00:00]} 54. Rb1 {[%emt 0:01:03]} f5 {[%emt 0:00:00]} 55. exf5 {[%emt 0:01:06]} Re7+ {[%emt 0:00:00]} 56. Kf2 {[%emt 0:00:17]} Kxf5 {[%emt 0:00:00]} 57. Rf1 {[%emt 0:01:06]} Re4 {[%emt 0:00:00]} 58. Rb1 {[%emt 0:01:01]} Rxc4 {[%emt 0:00:00]} 59. Rxb7 {[%emt 0:00:02]} Ke5 {[%emt 0:00:00]} 60. Rb6 {[%emt 0:00:07]} Kxd5 {[%emt 0:00:00]} 61. Rxa6 {[%emt 0:00:02]} Ra4 {[%emt 0:00:00]} 62. Ra8 {[%emt 0:00:08]} Kd4 {[%emt 0:00:00]} 63. a6 {[%emt 0:00:13]} d5 {[%emt 0:00:00]} 64. a7 {[%emt 0:00:06]} c4 {[%emt 0:00:00]} 65. Ke2 {[%emt 0:00:55]} Ra2+ {[%emt 0:00:00]} 66. Ke1 {[%emt 0:00:09]} g3 {[%emt 0:00:26]} 67. Rg8 {[%emt 0:00:21]} Rxa7 {[%emt 0:00:23]} 68. Rg4+ {[%emt 0:00:08]} Kc5 {[%emt 0:00:06]} 69. Rxg3 {[%emt 0:00:08]} Ra2 {[%emt 0:00:14]} 70. Kd1 {[%emt 0:00:17]} d4 {[%emt 0:00:31]} 71. Kc1 {[%emt 0:00:22]} c3 {[%emt 0:00:22]} 72. Kb1 {[%emt 0:00:18]} Rh2 {[%emt 0:00:15]} 73. Rg8 {[%emt 0:00:26]} Kc4 {[%emt 0:00:19]} 74. Rg1 {[%emt 0:00:09]} Kb3 {[%emt 0:00:15]} 75. Rf1 {[%emt 0:01:21]} Rb2+ {[%emt 0:00:13]} 76. Ka1 {[%emt 0:00:27]} Ra2+ {[%emt 0:00:08]} 0-1

[Event "Romanian Amateur Championship 2024"]
[Site "Eforie Nord"]
[Date "2024.02.28"]
[Round "4.2"]
[White "Raducanu, Andrei-Augustin"]
[Black "Dascalescu, Adelin-Stefan"]
[Result "1-0"]
[ECO "B39"]
[WhiteElo "1946"]
[BlackElo "1793"]
[Annotator "RC"]
[PlyCount "119"]
[EventDate "2024.02.26"]
[EventType "swiss"]
[EventCountry "ROU"]
[SourceTitle "playchess.com"]
[Source "ChessBase"]
[SourceQuality "1"]
[TimeControl "3600+30"]

1. e4 {[%emt 0:00:56]} c5 {[%emt 0:00:04]} 2. Nf3 {[%emt 0:00:18]} g6 {[%emt 0:00:04]} 3. c4 {[%emt 0:03:22]} Nc6 {[%emt 0:00:32]} 4. d4 {[%emt 0:00:32]} cxd4 {[%emt 0:00:05]} 5. Nxd4 {[%emt 0:00:04]} Bg7 {[%emt 0:00:04]} 6. Be3 {[%emt 0:00:48]} Nf6 {[%emt 0:00:06]} 7. Nc3 {[%emt 0:00:10]} Ng4 {[%emt 0:00:35]} 8. Qxg4 {[%emt 0:01:23]} Nxd4 {[%emt 0:00:08]} 9. Qd1 {[%emt 0:00:07]} Nc6 {[%emt 0:00:30]} 10. Be2 {[%emt 0:00:57]} d6 {[%emt 0:00:38]} 11. O-O {[%emt 0:00:31]} O-O {[%emt 0:00:34]} 12. Qd2 {[%emt 0:01:48]} Be6 {[%emt 0:00:40]} 13. Nd5 {[%emt 0:03:54]} Bxd5 {[%emt 0:02:50]} 14. cxd5 {[%emt 0:03:34]} Ne5 {[%emt 0:01:16]} 15. Rac1 {[%emt 0:07:11]} Qd7 {[%emt 0:01:21]} 16. h3 {[%emt 0:17:56]} Qa4 {[%emt 0:03:11]} 17. b3 {[%emt 0:07:41]} Qxe4 {[%emt 0:01:53]} 18. f4 {[%emt 0:10:28]} Bh6 {[%emt 0:01:12]} 19. Rc3 {[%emt 0:00:08]} Nd7 {[%emt 0:00:46]} 20. Rc4 {[%emt 0:00:33]} Qf5 {[%emt 0:01:41]} 21. Bg4 {[%emt 0:01:00]} Qf6 {[%emt 0:00:20]} 22. Bxd7 {[%emt 0:00:10]} e6 {[%emt 0:00:56]} 23. dxe6 {[%emt 0:00:59]} fxe6 {[%emt 0:00:10]} 24. Qxd6 {[%emt 0:00:59]} b5 {[%emt 0:03:38]} 25. Re4 {[%emt 0:03:07]} Rad8 {[%emt 0:00:47]} 26. Qxe6+ {[%emt 0:00:23]} Qxe6 {[%emt 0:00:02]} 27. Bxe6+ {[%emt 0:00:09]} Kh8 {[%emt 0:00:05]} 28. Bd4+ {[%emt 0:01:35]} Bg7 {[%emt 0:00:02]} 29. Bxg7+ {[%emt 0:00:04]} Kxg7 {[%emt 0:00:03]} 30. Bg4 {[%emt 0:00:17]} Rf7 {[%emt 0:00:45]} 31. Rd1 {[%emt 0:01:05]} Rdf8 {[%emt 0:00:24]} 32. Rd7 {[%emt 0:00:21]} h5 {[%emt 0:00:16]} 33. Be6 {[%emt 0:00:55]} Rxd7 {[%emt 0:00:25]} 34. Bxd7 {[%emt 0:00:03]} a6 {[%emt 0:00:08]} 35. Re7+ {[%emt 0:01:05]} Kh6 {[%emt 0:00:19]} 36. Re6 {[%emt 0:00:36]} Rxf4 {[%emt 0:01:01]} 37. Rxa6 {[%emt 0:00:16]} b4 {[%emt 0:00:35]} 38. Be8 {[%emt 0:00:08]} Re4 {[%emt 0:00:48]} 39. Bxg6 {[%emt 0:00:19]} Re1+ {[%emt 0:00:06]} 40. Kh2 {[%emt 0:00:34]} h4 {[%emt 0:00:12]} 41. Bd3+ {[%emt 0:01:01]} Kh5 {[%emt 0:01:19]} 42. Ra5+ {[%emt 0:00:29]} Kh6 {[%emt 0:00:03]} 43. Ra4 {[%emt 0:00:47]} Rd1 {[%emt 0:00:21]} 44. Bc4 {[%emt 0:00:31]} Rd2 {[%emt 0:00:16]} 45. Rxb4 {[%emt 0:00:20]} Rxa2 {[%emt 0:00:03]} 46. Rb5 {[%emt 0:00:14]} Rc2 {[%emt 0:00:10]} 47. Bf7 {[%emt 0:00:52]} Rf2 {[%emt 0:00:25]} 48. Rh5+ {[%emt 0:01:03]} Kg7 {[%emt 0:00:01]} 49. Bc4 {[%emt 0:00:22]} Rf4 {[%emt 0:00:06]} 50. Rg5+ {[%emt 0:00:10]} Kf6 {[%emt 0:00:29]} 51. Rg4 {[%emt 0:00:17]} Rf2 {[%emt 0:00:09]} 52. Rxh4 {[%emt 0:00:10]} Ke5 {[%emt 0:00:02]} 53. Rh8 {[%emt 0:00:39]} Kd4 {[%emt 0:00:07]} 54. Re8 {[%emt 0:00:14]} Kc5 {[%emt 0:00:06]} 55. h4 {[%emt 0:00:10]} Rf5 {[%emt 0:00:07]} 56. g4 {[%emt 0:00:11]} Rf3 {[%emt 0:00:04]} 57. Kg2 {[%emt 0:00:26]} Rc3 {[%emt 0:00:08]} 58. Kf2 {[%emt 0:00:23]} Rh3 {[%emt 0:00:07]} 59. h5 {[%emt 0:00:06]} Kb4 {[%emt 0:00:05]} 60. Re3 {[%emt 0:00:20]} 1-0